bitfinex/quotes_SOLUSD_20260222
["timestamp","ask_amount","ask_price","bid_price","bid_amount"]
[1771794638372,0.45379212,83.288,83.267,0.21629816]
[1771794639479,0.45379212,83.288,83.269,0.21629816]
[1771794706837,0.45379212,83.288,83.27,12.22542509]
[1771794717261,0.45379212,83.288,83.271,0.21629816]
[1771794726380,0.45379212,83.288,83.267,0.21629816]
[1771794726579,3.10589933,83.3,83.267,0.21629816]
[1771794727775,12.00494603,83.299,83.267,0.21629816]
[1771794728479,12.00494603,83.299,83.235,102.40482532]
[1771794728480,0.48572283,83.296,83.269,0.46247921]
[1771794729864,3.10589933,83.29,83.269,0.46247921]
[1771794730476,3.10589933,83.29,83.271,0.46247921]
[1771794730780,62.3,83.303,82.974,87.23901517]
[1771794730781,0.48572283,83.279,82.974,87.23901517]
[1771794731090,0.48572283,83.259,83.203,9.98589049]
[1771794731387,0.48572283,83.259,83.22,3.10589933]
[1771794731892,0.48572283,83.259,83.22,6.79973335]
[1771794732385,0.48572283,83.259,83.221,0.28432314]
[1771794732772,0.48572283,83.259,83.227,0.14216157]
[1771794733079,0.48572283,83.259,83.23,0.20761107]
[1771794734582,0.48572283,83.259,83.232,0.20761107]
[1771794738787,0.48572283,83.259,83.234,0.20761107]
[1771794740784,0.48572283,83.259,83.236,0.20761107]
[1771794742888,0.48572283,83.259,83.23,12.01489847]
[1771794743072,0.46643501,83.249,83.23,12.01489847]
[1771794743792,0.46643501,83.239,83.23,12.01489847]
[1771794743986,0.46643501,83.239,83.216,0.20761107]
[1771794745584,3.10589933,83.23,83.205,0.20761107]
[1771794745774,3.10589933,83.28,83.2,42.06730768]
[1771794745775,3.10589933,83.22,83.201,0.20761107]
[1771794746879,3.57233434,83.22,83.203,0.20761107]
[1771794747201,0.46643501,83.219,83.203,0.20761107]
[1771794751186,0.46643501,83.219,83.205,0.20761107]
[1771794752074,3.10589933,83.24,83.211,0.47640998]
[1771794752873,12.0095596,83.267,83.205,0.76073312]
[1771794753083,3.10589933,83.25,83.211,0.47640998]
[1771794753282,3.10589933,83.25,83.213,0.47640998]
[1771794754077,0.46643501,83.249,83.213,0.47640998]
[1771794754998,0.46643501,83.249,83.215,0.47640998]
[1771794757406,0.46643501,83.249,83.217,0.47640998]
[1771794758806,0.46643501,83.249,83.221,0.48806393]
[1771794762389,0.46643501,83.249,83.223,0.48806393]
[1771794764510,0.46643501,83.249,83.225,0.48806393]
[1771794766413,0.46643501,83.249,83.227,0.48806393]
[1771794770317,0.46643501,83.249,83.228,12.01518719]
[1771794771822,0.46643501,83.249,83.228,12.50325112]
[1771794773812,0.46643501,83.249,83.229,0.48806393]
[1771794776210,0.46643501,83.249,83.23,0.48806393]
[1771794778308,0.46643501,83.249,83.231,12.01475411]
[1771794778498,0.46643501,83.249,83.231,12.50281804]
[1771794778697,0.46643501,83.249,83.231,12.01475411]
[1771794778994,0.46643501,83.249,83.232,0.48806393]
[1771794785621,0.46643501,83.249,83.228,0.48806393]
[1771794788120,0.46643501,83.249,83.229,12.50310676]
[1771794788625,0.46643501,83.249,83.229,12.48451026]
[1771794788930,0.46643501,83.249,83.23,0.46946743]
[1771794795720,0.46643501,83.249,83.229,12.01504283]
[1771794802233,0.46840586,83.239,83.206,0.47168565]
[1771794804029,0.46840586,83.229,83.206,0.47168565]
[1771794806435,0.46840586,83.229,83.208,0.47168565]
[1771794808738,0.46840586,83.229,83.21,0.47168565]
[1771794811542,0.46840586,83.239,83.212,0.47168565]
[1771794816349,0.46840586,83.239,83.213,12.01735305]
[1771794816533,0.46840586,83.239,83.213,12.4890387]
[1771794818549,0.46840586,83.239,83.214,0.48572308]
[1771794823051,0.46840586,83.239,83.216,0.48572308]
[1771794826351,0.46840586,83.239,83.218,0.48572308]
[1771794828834,0.46840586,83.239,83.219,12.01648661]
[1771794831457,0.45871661,83.247,83.22,0.48572308]
[1771794834761,0.45871661,83.247,83.221,12.01619783]
[1771794834959,0.45871661,83.247,83.222,0.48572308]
[1771794837266,0.45871661,83.247,83.224,0.48572308]
[1771794838371,0.45871661,83.247,83.226,0.48572308]
[1771794840371,0.45871661,83.247,83.227,12.01533156]
[1771794840549,0.45871661,83.239,83.212,0.48572308]
[1771794841652,0.45871661,83.239,83.214,0.48572308]
[1771794845879,0.45871661,83.239,83.215,12.01706423]
[1771794846172,0.45871661,83.239,83.215,12.50278731]
[1771794853659,0.45871661,83.239,83.215,0.48194904]
[1771794857482,0.45871661,83.239,83.217,0.4740354]
[1771794862083,0.45871661,83.239,83.218,12.01663101]
[1771794866495,0.45871661,83.239,83.207,12.01821962]
[1771794866699,0.45706618,83.229,83.208,0.4740354]
[1771794867983,0.45706618,83.238,83.208,0.4740354]
[1771794868182,0.45706618,83.243,83.211,0.4740354]
[1771794868971,0.45706618,83.243,83.213,0.4740354]
[1771794877692,0.45706618,83.243,83.215,0.4740354]
[1771794878705,0.45706618,83.243,83.217,0.4725195]
[1771794881696,0.45706618,83.243,83.219,0.4725195]
[1771794882710,0.45706618,83.243,83.221,0.4725195]
[1771794883710,0.45706618,83.243,83.223,0.4725195]
[1771794899041,0.45706618,83.243,83.224,12.01576468]
[1771794899207,0.45706618,83.243,83.225,0.4725195]
[1771794901207,0.4861963,83.249,83.227,0.4725195]
[1771794901436,0.4861963,83.262,83.227,0.4725195]
[1771794901937,3.59534605,83.26,83.227,0.4725195]
[1771794902628,3.59534605,83.26,83.229,0.4725195]
[1771794902931,0.4861963,83.259,83.229,0.4725195]
[1771794904619,0.4861963,83.259,83.228,42.05315518]
[1771794904620,0.4861963,83.259,83.231,0.4725195]
[1771794906441,0.4861963,83.259,83.233,0.4725195]
[1771794908549,0.4861963,83.259,83.234,12.01432107]
[1771794908833,0.4861963,83.259,83.235,0.4600595]
[1771794910939,0.4861963,83.259,83.237,0.4600595]
[1771794917342,0.4861963,83.259,83.232,12.47203975]
[1771794917523,0.4861963,83.259,83.233,0.45746935]
[1771794918631,0.4861963,83.259,83.234,12.47179042]
[1771794920139,0.4861963,83.259,83.234,12.01432107]
[1771794920341,0.4861963,83.259,83.234,12.47179042]
[1771794920642,0.4861963,83.259,83.235,0.45746935]
[1771794921341,0.4861963,83.259,83.237,0.45746935]
[1771794942264,0.4861963,83.259,83.239,0.46311326]
[1771794976098,0.4861963,83.259,83.24,0.46710756]
[1771794976394,3.10772468,83.27,83.24,0.46710756]
[1771794976781,12.00927115,83.269,83.24,0.46710756]
[1771794977086,3.10772468,83.26,83.24,0.46710756]
[1771794977482,3.10772468,83.25,83.234,12.01431764]
[1771794977685,30.02065421,83.276,83.234,12.01431764]
[1771794977686,3.10772468,83.24,83.234,12.01431764]
[1771794978483,0.45175209,83.239,83.209,0.46710756]
[1771794978679,0.45175209,83.239,83.211,0.46710756]
[1771794984103,0.45175209,83.239,83.212,12.01749747]
[1771794984288,0.45175209,83.239,83.213,0.46710756]
[1771794985794,0.45175209,83.239,83.214,12.01720864]
[1771794985994,0.45175209,83.239,83.215,0.46710756]
[1771794988990,0.45175209,83.239,83.217,0.46710756]
[1771794990610,3.10772468,83.25,83.217,0.46710756]
[1771794991112,0.45175209,83.249,83.217,0.46710756]
[1771794992001,0.45175209,83.249,83.221,0.46710756]
[1771794992309,12.0118113,83.252,83.221,0.46710756]
[1771794992514,12.46356339,83.252,83.221,0.46710756]
[1771794993202,12.01066394,83.26,83.231,0.46710756]
[1771794993508,0.45175209,83.259,83.231,0.46710756]
[1771794994392,0.45175209,83.259,83.233,0.46710756]
[1771794997611,3.10772468,83.26,83.234,12.01432107]
[1771794997914,0.45175209,83.268,83.234,12.01432107]
[1771794997915,0.45175209,83.268,83.235,0.46710756]
[1771795000312,0.45175209,83.268,83.237,0.49807797]
[1771795002717,0.45175209,83.268,83.238,12.01374372]
[1771795002912,12.0095596,83.267,83.239,0.49807797]
[1771795003101,0.4613247,83.266,83.239,0.49807797]
[1771795003908,12.0095596,83.267,83.23,3.10772468]
[1771795003909,3.10772468,83.26,83.24,12.01345506]
[1771795004112,3.10772468,83.26,83.241,0.49807797]
[1771795004817,0.4613247,83.262,83.241,0.49807797]
[1771795008900,3.10772468,83.26,83.237,0.49807797]
[1771795009102,0.4613247,83.259,83.237,0.49807797]
[1771795010523,0.4613247,83.259,83.238,12.01374372]
[1771795011416,0.4613247,83.259,83.238,12.51182169]
[1771795011624,0.4613247,83.259,83.228,30.03782876]
[1771795011625,0.4613247,83.259,83.239,0.49807797]
[1771795016326,0.4613247,83.259,83.241,0.49807797]
[1771795022532,0.4613247,83.259,83.243,0.49807797]
[1771795025818,0.4613247,83.266,83.243,0.49807797]
[1771795030646,0.4613247,83.266,83.244,12.0128778]
[1771795030822,12.00938326,83.269,83.245,0.48778621]
[1771795031023,12.48403975,83.269,83.245,0.48778621]
[1771795031225,0.47465649,83.275,83.245,0.48778621]
[1771795031425,0.47465649,83.277,83.251,0.48778621]
[1771795031626,0.47465649,83.277,83.252,12.01172344]
[1771795031942,0.47465649,83.281,83.253,0.48778621]
[1771795032142,0.47465649,83.279,83.253,0.48778621]
[1771795033144,12.00797329,83.278,83.253,0.48778621]
[1771795033323,0.47465649,83.277,83.253,0.48778621]
[1771795038541,3.10731393,83.27,83.25,12.01191786]
[1771795038748,0.47665745,83.269,83.25,12.01191786]
[1771795039042,0.47665745,83.269,83.241,0.46847392]
[1771795041133,0.47665745,83.269,83.243,0.46847392]
[1771795042254,0.47665745,83.269,83.245,0.46847392]
[1771795043253,0.47665745,83.275,83.247,0.46847392]
[1771795045554,0.47665745,83.28,83.251,0.46847392]
[1771795046356,0.47665745,83.289,83.271,0.46847392]
[1771795046554,0.47665745,83.289,83.261,0.46847392]
[1771795047640,0.47665745,83.288,83.262,0.46847392]
[1771795056840,0.47665745,83.288,83.263,12.01013655]
[1771795057152,0.47665745,83.288,83.264,0.46847392]
[1771795082388,0.47665745,83.288,83.266,0.46359534]
[1771795084569,0.47007686,83.298,83.271,0.46359534]
[1771795086685,0.47007686,83.298,83.272,12.0088385]
[1771795086875,0.47007686,83.298,83.273,0.46359534]
[1771795088592,0.49527097,83.289,83.268,12.00940953]
[1771795090990,0.49527097,83.289,83.264,0.46073263]
[1771795090991,0.49527097,83.288,83.264,0.46073263]
[1771795091290,0.49527097,83.279,83.251,0.46073263]
[1771795092590,0.49527097,83.279,83.252,0.46073263]
[1771795098600,0.49527097,83.279,83.254,0.49184565]
[1771795099100,0.49527097,83.279,83.261,0.49184565]
[1771795100586,0.49527097,83.279,83.263,0.49184565]
[1771795110003,0.49527097,83.279,83.259,0.49184565]
[1771795115998,0.49527097,83.279,83.261,0.49184565]
[1771795120414,0.49527097,83.279,83.263,0.49111052]
[1771795129730,0.49527097,83.279,83.24,3.10438418]
[1771795129731,0.48588877,83.277,83.24,0.49111052]
[1771795130015,0.48588877,83.269,83.24,0.49111052]
[1771795130408,0.48588877,83.269,83.241,0.49111052]
[1771795131407,0.48588877,83.284,83.251,0.49111052]
[1771795131605,0.48588877,83.284,83.253,0.49111052]
[1771795136029,0.48588877,83.279,83.255,0.49111052]
[1771795139736,0.48588877,83.279,83.257,0.49111052]
[1771795139930,3.10438418,83.3,83.261,0.49111052]
[1771795141617,12.00494603,83.299,83.263,0.49111052]
[1771795141816,0.38831306,83.289,83.263,0.49111052]
[1771795143935,0.38831306,83.289,83.264,12.00999231]
[1771795144136,0.38831306,83.289,83.265,0.49111052]
[1771795146444,0.38831306,83.287,83.265,0.49111052]
[1771795148930,0.38831306,83.287,83.261,0.47303825]
[1771795151149,0.38831306,83.287,83.262,12.48331905]
[1771795151746,0.38831306,83.285,83.259,0.47303825]
[1771795152345,0.38831306,83.298,83.259,0.47303825]
[1771795153036,0.38831306,83.298,83.261,0.47303825]
[1771795154542,3.10562295,83.3,83.263,0.47303825]
[1771795154543,0.38831306,83.296,83.263,0.47303825]
[1771795155856,0.38831306,83.294,83.265,0.48926869]
[1771795158755,0.38831306,83.299,83.267,0.48926869]
[1771795159449,0.38831306,83.289,83.267,0.48926869]
[1771795159849,0.38831306,83.289,83.263,0.48926869]
[1771795164661,0.38831306,83.289,83.265,0.48926869]
[1771795167673,0.38831306,83.296,83.267,0.48926869]
[1771795168565,0.38831306,83.296,83.269,0.48926869]
[1771795169690,0.38831306,83.294,83.269,0.48926869]
[1771795170465,0.38831306,83.294,83.27,12.00912693]
[1771795170664,0.38831306,83.294,83.271,0.48926869]
[1771795189887,0.38831306,83.292,83.271,0.48926869]
[1771795190087,0.48477248,83.289,83.262,12.01025017]
[1771795192079,0.48477248,83.287,83.262,12.01025017]
[1771795192265,0.48477248,83.287,83.262,12.47319167]
[1771795193875,0.48477248,83.287,83.25,3.10562295]
[1771795194071,0.48477248,83.287,83.263,0.4629415]
[1771795200388,12.00596353,83.292,83.265,0.4629415]
[1771795200789,12.49073601,83.292,83.265,0.4629415]
[1771795200989,0.48477248,83.289,83.265,0.4629415]
[1771795203302,0.48477248,83.288,83.265,0.4629415]
[1771795204802,0.48477248,83.279,83.239,0.4629415]
[1771795204980,0.48477248,83.269,83.243,0.4629415]
[1771795205300,62.3,83.279,83.205,0.4629415]
[1771795205301,0.48477248,83.249,83.205,0.4629415]
[1771795205474,0.48477248,83.249,83.211,0.4629415]
[1771795205892,0.48477248,83.249,83.205,42.06477975]
[1771795205893,0.48477248,83.249,83.221,0.4629415]
[1771795207878,0.48477248,83.249,83.223,0.4629415]
[1771795210509,0.48477248,83.249,83.225,0.46810307]
[1771795211502,0.48477248,83.249,83.227,0.46810307]
[1771795215002,0.49207641,83.259,83.229,0.46810307]
[1771795218405,0.49061882,83.258,83.231,0.47203005]
[1771795222009,0.49061882,83.257,83.231,0.47203005]
[1771795228310,3.1080815,83.25,83.231,0.47203005]
[1771795228517,0.49061882,83.249,83.231,0.47203005]
[1771795234917,0.49061882,83.249,83.233,0.47203005]
[1771795255040,0.49574887,83.257,83.233,0.47203005]
[1771795276468,30.02263652,83.271,83.204,60.09288871]
[1771795276469,0.45670895,83.267,83.24,3.10807178]
[1771795276769,0.45670895,83.267,83.241,0.46479456]
[1771795279963,0.45670895,83.267,83.243,0.46479456]
[1771795281661,0.45670895,83.267,83.245,0.46479456]
[1771795283374,0.45670895,83.278,83.247,0.46479456]
[1771795285874,0.45670895,83.276,83.249,0.46479456]
[1771795296485,0.45670895,83.274,83.249,0.46479456]
[1771795305370,0.45010648,83.272,83.249,0.46479456]
[1771795305570,0.45010648,83.269,83.248,12.01230059]
[1771795306405,0.45010648,83.269,83.248,12.47126968]
[1771795306992,0.45010648,83.269,83.249,0.45896909]
[1771795330402,62.76401385,83.284,83.251,0.49883667]
[1771795330601,12.47126623,83.283,83.251,0.49883667]
[1771795330913,0.46401385,83.282,83.251,0.49883667]
[1771795332503,0.46401385,83.282,83.253,0.49883667]
[1771795337815,0.49726165,83.279,83.255,0.49381153]
[1771795340313,0.49726165,83.279,83.257,0.49381153]
[1771795354525,0.49726165,83.279,83.259,0.49381153]
[1771795354730,62.3,83.284,83.261,0.49381153]
[1771795355025,12.00573021,83.294,83.263,0.49381153]
[1771795355222,12.00573021,83.294,83.271,0.49381153]
[1771795356425,12.00509015,83.298,83.271,0.49381153]
[1771795357018,0.37694018,83.297,83.271,0.49381153]
[1771795359026,12.38231858,83.296,83.271,0.49381153]
[1771795359233,0.37694018,83.295,83.271,0.49381153]
[1771795364628,12.3825164,83.295,83.271,0.49381153]
[1771795370938,12.00557622,83.295,83.271,0.49381153]
[1771795371133,0.37694018,83.294,83.271,0.49381153]
[1771795401160,56.70681132,83.299,83.273,0.4588703]
[1771795401849,12.00316928,83.312,83.291,0.4588703]
[1771795412553,55.90681132,83.319,83.291,0.4588703]
[1771795412758,0.37694018,83.312,83.291,0.4588703]
[1771795419875,0.37694018,83.318,83.293,0.47365393]
[1771795421887,0.37694018,83.317,83.295,0.47365393]
[1771795427290,30.0022725,83.328,83.278,0.47365393]
[1771795427291,0.37694018,83.309,83.278,0.47365393]
[1771795429291,0.37694018,83.309,83.279,12.0078291]
[1771795429489,0.37694018,83.309,83.28,0.47365393]
[1771795431092,0.37694018,83.299,83.271,12.00893126]
[1771795431489,0.37694018,83.297,83.266,0.47365393]
[1771795433493,0.37694018,83.297,83.267,12.0095596]
[1771795433695,0.37694018,83.297,83.268,0.47365393]
[1771795434985,0.37694018,83.297,83.27,3.10457641]
[1771795435303,0.37694018,83.297,83.271,0.47365393]
[1771795444316,0.37694018,83.295,83.267,12.0095596]
[1771795444503,0.37694018,83.289,83.267,12.0095596]
[1771795444705,0.37694018,83.289,83.264,0.47365393]
[1771795444706,0.37694018,83.279,83.241,0.47365393]
[1771795445005,0.37694018,83.279,83.251,0.47365393]
[1771795446494,0.37694018,83.277,83.251,0.47365393]
[1771795447390,0.37694018,83.282,83.253,0.47365393]
[1771795447594,0.37694018,83.298,83.261,0.47365393]
[1771795448310,0.37694018,83.298,83.271,0.48892586]
[1771795448515,0.37694018,83.296,83.271,0.48892586]
[1771795449822,0.37694018,83.294,83.271,0.48892586]
[1771795452516,0.37694018,83.292,83.271,0.48892586]
[1771795464419,0.37694018,83.29,83.271,0.48892586]
[1771795476036,0.37694018,83.289,83.265,0.47365633]
[1771795476333,0.37694018,83.288,83.265,0.47365633]
[1771795476722,3.10480274,83.28,83.265,0.47365633]
[1771795476917,0.37694018,83.279,83.243,0.47365633]
[1771795477229,0.37694018,83.269,83.243,0.47365633]
[1771795477442,0.37694018,83.259,83.233,0.47365633]
[1771795477737,0.37694018,83.249,83.233,0.47365633]
[1771795482833,12.00941387,83.269,83.235,0.4579665]
[1771795483336,0.37694018,83.268,83.235,0.4579665]
[1771795485239,0.37694018,83.268,83.236,12.01403238]
[1771795485433,0.37694018,83.268,83.237,0.4579665]
[1771795487343,0.37694018,83.268,83.238,12.01374372]
[1771795487544,0.37694018,83.268,83.239,0.4579665]
[1771795489742,0.37694018,83.266,83.239,0.4579665]
[1771795494052,0.37694018,83.264,83.239,0.4579665]
[1771795500562,0.37694018,83.259,83.231,0.4579665]
[1771795500858,0.37694018,83.249,83.231,0.4579665]
[1771795502964,3.48174292,83.26,83.233,0.4579665]
[1771795503158,12.01071355,83.259,83.233,0.4579665]
[1771795503667,12.00979395,83.266,83.233,0.4579665]
[1771795504363,12.00979395,83.266,83.232,12.01460976]
[1771795504364,12.38673413,83.266,83.235,0.4579665]
[1771795504545,12.00979395,83.266,83.235,0.4579665]
[1771795504747,0.37694018,83.265,83.235,0.4579665]
[1771795509265,0.37694018,83.265,83.236,12.01403238]
[1771795509459,0.37694018,83.265,83.237,0.49177226]
[1771795511358,0.37694018,83.265,83.239,0.49177226]
[1771795512163,12.00999231,83.264,83.239,0.49177226]
[1771795514987,0.37694018,83.264,83.239,0.49177226]
[1771795519856,0.37694018,83.264,83.241,0.48022824]
[1771795539783,12.00993897,83.265,83.241,0.48022824]
[1771795540274,12.38687915,83.265,83.241,0.48022824]
[1771795546083,0.37694018,83.264,83.241,0.48022824]
[1771795558504,30.01972704,83.279,83.24,12.01345506]
[1771795558505,12.00842708,83.275,83.243,0.4706523]
[1771795560200,12.38563447,83.273,83.243,0.4706523]
[1771795560396,0.37694018,83.272,83.245,0.4706523]
[1771795564125,0.37694018,83.272,83.247,0.4706523]
[1771795565815,3.10724922,83.27,83.247,0.4706523]
[1771795566015,3.4841894,83.27,83.247,0.4706523]
[1771795568623,0.37694018,83.269,83.247,0.4706523]
[1771795572924,0.37694018,83.269,83.249,0.49003173]
[1771795579132,0.37694018,83.273,83.249,0.49003173]
[1771795580234,0.37694018,83.273,83.251,0.49031602]
[1771795584137,55.90681132,83.294,83.253,0.49031602]
[1771795584338,0.37694018,83.292,83.261,0.49031602]
[1771795584729,3.10692731,83.29,83.261,0.49031602]
[1771795584930,0.37694018,83.289,83.261,0.49031602]
[1771795586338,0.37694018,83.289,83.262,12.0102808]
[1771795586545,0.37694018,83.293,83.263,0.49031602]
[1771795586749,55.90681132,83.294,83.263,0.49031602]
[1771795586918,56.2837515,83.294,83.263,0.49031602]
[1771795587126,0.37694018,83.293,83.271,0.49031602]
[1771795587323,55.90681132,83.294,83.271,0.49031602]
[1771795587942,0.37694018,83.302,83.28,3.10692731]
[1771795588249,0.46141715,83.311,83.291,0.49031602]
[1771795588626,3.10692731,83.3,83.245,0.49031602]
[1771795588845,12.00336094,83.31,83.253,0.49031602]
[1771795588846,0.46141715,83.279,83.253,0.49031602]
[1771795591844,0.46141715,83.279,83.254,12.01143488]
[1771795592040,0.46141715,83.279,83.255,0.49031602]
[1771795593246,0.46141715,83.279,83.25,0.49031602]
[1771795594744,0.46141715,83.279,83.251,12.01186772]
[1771795595848,0.46141715,83.279,83.251,12.50218374]
[1771795596239,0.46141715,83.279,83.252,0.49031602]
[1771795598046,0.46141715,83.279,83.253,12.50189518]
[1771795605340,0.46141715,83.279,83.254,0.4941731]
[1771795610355,0.46141715,83.279,83.255,12.01129061]
[1771795610559,0.46141715,83.279,83.256,0.4941731]
[1771795615442,0.47944443,83.269,83.23,3.10692731]
[1771795615846,3.10692731,83.26,83.22,3.10692731]
[1771795616043,0.47944443,83.259,83.22,3.10692731]
[1771795617365,0.47944443,83.259,83.222,42.05618705]
[1771795617559,0.47944443,83.259,83.223,0.4941731]
[1771795621265,0.47944443,83.239,83.222,0.4941731]
[1771795621861,0.47944443,83.243,83.222,0.4941731]
[1771795622249,12.01085781,83.258,83.222,0.4941731]
[1771795622250,0.47944443,83.249,83.222,0.4941731]
[1771795622476,0.47944443,83.257,83.222,0.4941731]
[1771795623270,0.47944443,83.257,83.224,0.4941731]
[1771795625270,0.47944443,83.255,83.226,0.4941731]
[1771795631473,0.47944443,83.255,83.228,0.47833012]
[1771795633772,0.47944443,83.255,83.23,0.47833012]
[1771795637377,0.47944443,83.255,83.232,0.48324424]
[1771795638175,12.00999227,83.265,83.232,0.48324424]
[1771795638478,0.45439027,83.264,83.232,0.48324424]
[1771795638865,0.45439027,83.264,83.241,0.48324424]
[1771795652497,12.01013655,83.263,83.241,0.48324424]
[1771795652675,0.45439027,83.262,83.241,0.48324424]
[1771795652881,0.45439027,83.259,83.241,0.48324424]
[1771795657295,0.45439027,83.259,83.224,30.03930752]
[1771795657503,0.45439027,83.259,83.237,0.48324424]
[1771795658906,0.47295525,83.249,83.222,0.45396683]
[1771795660197,0.47295525,83.249,83.213,12.01735305]
[1771795660384,0.47295525,83.239,83.213,12.01735305]
[1771795660584,12.01085781,83.258,83.209,12.01787541]
[1771795660585,0.47295525,83.229,83.209,12.01787541]
[1771795660787,0.47295525,83.229,83.209,0.45396683]
[1771795661205,0.47295525,83.229,83.202,0.45396683]
[1771795663097,0.47295525,83.229,83.203,12.01879739]
[1771795663291,0.47295525,83.229,83.204,0.45396683]
[1771795665407,0.47295525,83.229,83.206,0.45396683]
[1771795669606,0.47295525,83.229,83.207,12.47218645]
[1771795672411,0.47295525,83.229,83.208,0.45396683]
[1771795677312,0.47295525,83.229,83.203,0.45396683]
[1771795680718,30.03070189,83.249,83.2,0.2]
[1771795680719,3.10823708,83.22,83.2,0.2]
[1771795680921,0.47295525,83.209,83.181,0.45396683]
[1771795681915,0.47295525,83.209,83.182,12.02173447]
[1771795682100,0.47295525,83.209,83.183,0.45396683]
[1771795682496,3.10823708,83.24,83.201,0.45396683]
[1771795684013,12.01359939,83.239,83.203,0.45396683]
[1771795684617,0.47295525,83.238,83.203,0.45396683]
[1771795686822,0.47295525,83.236,83.205,0.45396683]
[1771795691413,0.45235436,83.234,83.205,0.45396683]
[1771795692923,12.01446541,83.233,83.205,0.45396683]
[1771795693119,0.45235436,83.232,83.205,0.45396683]
[1771795694921,0.45235436,83.232,83.207,0.47638001]
[1771795695115,12.01446541,83.233,83.207,0.47638001]
[1771795695623,0.46389274,83.232,83.207,0.47638001]
[1771795728446,0.45980754,83.229,83.204,12.01851203]
[1771795729136,0.45980754,83.229,83.204,12.47482247]
[1771795730048,0.45980754,83.229,83.205,0.45631044]
[1771795731430,0.45980754,83.229,83.206,12.01836406]
[1771795731630,0.45980754,83.229,83.207,0.45631044]
[1771795738852,0.45980754,83.234,83.207,0.45631044]
[1771795739864,0.45980754,83.229,83.203,0.45631044]
[1771795742753,0.45980754,83.219,83.195,0.45631044]
[1771795742949,0.45980754,83.209,83.187,0.45631044]
[1771795743154,0.45980754,83.209,83.182,0.45631044]
[1771795743858,44.91362261,83.218,83.18,0.2]
[1771795743859,0.45980754,83.199,83.18,0.2]
[1771795744053,0.45980754,83.199,83.177,0.45631044]
[1771795744461,0.45980754,83.199,83.17,0.2]
[1771795745155,0.45980754,83.199,83.171,12.02334952]
[1771795746541,0.45980754,83.199,83.173,12.0231325]
[1771795746867,0.45980754,83.189,83.17,0.2]
[1771795747242,0.45980754,83.179,83.17,0.2]
[1771795747564,1e-08,83.18,83.17,0.2]
[1771795747760,1e-08,83.18,83.16,0.2]
[1771795749439,0.43008529,83.179,83.16,0.2]
[1771795749638,0.43008529,83.177,83.16,0.2]
[1771795749837,0.23008529,83.159,83.15,0.2]
[1771795750448,0.23008529,83.164,83.15,0.2]
[1771795751266,42.07843419,83.178,83.14,0.2]
[1771795751267,0.03008529,83.159,83.14,0.2]
[1771795751652,0.03008529,83.158,83.14,0.2]
[1771795752144,0.03008529,83.158,83.14,0.68495735]
[1771795753066,0.03008529,83.158,83.141,0.48495735]
[1771795753573,12.02515662,83.159,83.141,0.48495735]
[1771795757463,56.93877923,83.159,83.141,0.48495735]
[1771795760974,56.96886452,83.159,83.141,0.48495735]
[1771795761154,0.03008529,83.158,83.141,0.48495735]
[1771795765375,56.93877923,83.159,83.141,0.48495735]
[1771795765554,56.96886452,83.159,83.141,0.48495735]
[1771795766174,41.98633642,83.159,83.141,0.49545768]
[1771795769078,3.14540371,83.16,83.141,0.49545768]
[1771795770474,3.11531842,83.16,83.141,0.49545768]
[1771795773578,0.03008529,83.164,83.141,0.49545768]
[1771795780479,12.05379604,83.169,83.143,0.48495735]
[1771795781885,0.03008529,83.169,83.143,0.48495735]
[1771795782664,0.03008529,83.178,83.143,0.48495735]
[1771795782870,0.03008529,83.178,83.141,12.02773327]
[1771795782871,39.68633642,83.177,83.151,0.48495735]
[1771795783196,0.03008529,83.176,83.151,0.48495735]
[1771795786780,12.05278414,83.176,83.151,0.48495735]
[1771795787989,0.03008529,83.175,83.151,0.48495735]
[1771795798515,0.03008529,83.193,83.161,0.48495735]
[1771795798685,0.03008529,83.193,83.171,0.48495735]
[1771795800402,0.03008529,83.195,83.171,0.48495735]
[1771795801392,0.4617483,83.189,83.16,3.11531842]
[1771795801710,42.06933025,83.196,83.141,12.02776007]
[1771795801711,0.4617483,83.179,83.141,12.02776007]
[1771795803399,12.02240977,83.178,83.142,0.4537822]
[1771795803602,0.4617483,83.177,83.142,0.4537822]
[1771795805914,0.4617483,83.175,83.151,0.4537822]
[1771795807406,0.4617483,83.173,83.151,0.4537822]
[1771795812013,12.02327706,83.172,83.151,0.4537822]
[1771795812207,0.47146481,83.171,83.14,3.31531842]
[1771795812515,0.47146481,83.171,83.142,0.49430294]
[1771795817020,0.48264525,83.169,83.142,0.49430294]
[1771795819002,0.48264525,83.167,83.142,0.49430294]
[1771795824514,0.48264525,83.165,83.142,0.49430294]
[1771795825621,0.31504264,83.149,83.122,0.45210285]
[1771795826010,0.31504264,83.149,83.125,0.45210285]
[1771795826425,12.02674748,83.148,83.128,0.45210285]
[1771795826615,0.31504264,83.147,83.128,0.45210285]
[1771795827005,39.38690888,83.15,83.14,3.11432625]
[1771795827213,39.38690888,83.15,83.141,0.45210285]
[1771795830730,12.02571329,83.156,83.141,0.45210285]
[1771795834231,12.02457823,83.163,83.141,0.45210285]
[1771795834434,12.33962087,83.163,83.141,0.45210285]
[1771795835734,12.02457823,83.163,83.141,0.45210285]
[1771795836028,12.33962087,83.163,83.141,0.45210285]